fUSD/lending_fUSD_20250414
["ID","MTS","AMOUNT","RATE_DAILY","PERIOD"]
[358031444,1744659032360,-500.0,0.00017986,2]
[358031445,1744659032368,-500.0,0.00017986,2]
[358031446,1744659032377,-500.0,0.00017986,2]
[358031447,1744659032386,-500.0,0.00017986,2]
[358031448,1744659032395,-500.0,0.00017986,2]
[358031449,1744659032405,-288.67936434,0.00017986,2]
[358031450,1744659032414,-186.38378401,0.00017986,2]
[358031451,1744659032423,-500.0,0.00017986,2]
[358031452,1744659032433,-500.0,0.00017986,2]
[358031453,1744659032443,-553.38,0.00017986,2]
[358031454,1744659032452,-507.87003216,0.00017986,2]
[358031455,1744659032462,-500.0,0.00017986,2]
[358031456,1744659032472,-500.0,0.00017986,2]
[358031457,1744659032482,-500.0,0.00017986,2]
[358031458,1744659032491,-500.0,0.00017986,2]
[358031459,1744659032501,-500.0,0.00017986,2]
[358031460,1744659032511,-517.64866465,0.00017986,2]
[358031461,1744659032521,-500.0,0.00017986,2]
[358031462,1744659032532,-500.0,0.00017986,2]
[358031463,1744659032542,-500.0,0.00017986,2]
[358031464,1744659032552,-500.0,0.00017986,2]
[358031465,1744659032561,-500.0,0.00017986,2]
[358031466,1744659032571,-500.0,0.00017986,2]
[358031467,1744659032581,-1351.23,0.00017986,2]
[358031468,1744659032594,-500.0,0.00017986,2]
[358031469,1744659032604,-896.3,0.00017986,2]
[358031470,1744659032614,-91260.9785695,0.00017986,2]
[358031471,1744659032624,-500.0,0.00017986,2]
[358031472,1744659032633,-500.0,0.00017986,2]
[358031473,1744659032643,-500.0,0.00017986,2]
[358031474,1744659032654,-2457.8094399,0.00017986,2]
[358031475,1744659032664,-500.0,0.00017986,2]
[358031476,1744659032673,-500.0,0.00017986,2]
[358031477,1744659032683,-500.0,0.00017986,2]
[358031478,1744659032694,-500.0,0.00017986,2]
[358031479,1744659032703,-500.0,0.00017986,2]
[358031480,1744659032713,-502.18362092,0.00017986,2]
[358031481,1744659032723,-503.87147587,0.00017986,2]
[358031482,1744659032733,-500.0,0.00017986,2]
[358031483,1744659032743,-445.21340878,0.00017986,2]
[358031484,1744659032753,-501.28730894,0.00017986,2]
[358031485,1744659032763,-11348.4306361,0.00017987,2]
[358031486,1744659032775,-207.4,0.00017989,2]
[358031487,1744659032787,-167.97823407,0.0001799,2]
[358031488,1744659032796,-167.97823407,0.0001799,2]
[358031489,1744659032805,-243.63,0.00017998,2]
[358031490,1744659032816,-500.0,0.00017998,2]
[358031491,1744659032826,-500.0,0.00017998,2]
[358031492,1744659032836,-500.0,0.00017998,2]
[358031493,1744659032847,-500.0,0.00017998,2]
[358031494,1744659032857,-500.0,0.00017998,2]
[358031495,1744659032867,-500.0,0.00017998,2]
[358031496,1744659032877,-520.81,0.00017998,2]
[358031497,1744659032886,-500.0,0.00017998,2]
[358031498,1744659032896,-500.0,0.00017998,2]
[358031499,1744659032906,-500.0,0.00017998,2]
[358031500,1744659032916,-500.0,0.00017998,2]
[358031501,1744659032926,-500.0,0.00017998,2]
[358031502,1744659032935,-500.0,0.00017998,2]
[358031503,1744659032945,-500.0,0.00017998,2]
[358031504,1744659032954,-546.99,0.00017998,2]
[358031505,1744659032964,-500.0,0.00017998,2]
[358031506,1744659032974,-500.0,0.00017998,2]
[358031507,1744659032983,-620.93,0.00017998,2]
[358031508,1744659032993,-500.0,0.00017998,2]
[358031509,1744659033003,-500.0,0.00017998,2]
[358031510,1744659033012,-200.59008569,0.00017999,2]
[358031511,1744659033022,-213.76605064,0.00017999,2]
[358031512,1744659033032,-183.47144648,0.00017999,2]
[358031513,1744659033042,-219.3,0.00017999,2]
[358031514,1744659033051,-235.33,0.00017999,2]
[358031515,1744659033061,-300.0,0.00017999,2]
[358031516,1744659033071,-500.0,0.00017999,2]
[358031517,1744659033081,-500.0,0.00017999,2]
[358031518,1744659033091,-500.0,0.00017999,2]
[358031519,1744659033102,-500.0,0.00017999,2]
[358031520,1744659033112,-500.0,0.00017999,2]
[358031521,1744659033123,-500.0,0.00017999,2]
[358031522,1744659033133,-500.0,0.00017999,2]
[358031523,1744659033143,-500.0,0.00017999,2]
[358031524,1744659033152,-500.0,0.00017999,2]
[358031525,1744659033162,-500.0,0.00017999,2]
[358031526,1744659033173,-625.51027741,0.00017999,2]
[358031527,1744659033184,-500.0,0.00017999,2]
[358031528,1744659033194,-525.00882563,0.00017999,2]
[358031529,1744659033204,-500.0,0.00017999,2]
[358031530,1744659033214,-162.67435008,0.00017999,2]
[358031531,1744659033223,-364476.66432016,0.00018,2]
[358031532,1744659033233,-250.0,0.00018,2]
[358031533,1744659033243,-250.0,0.00018,2]
[358031534,1744659033253,-250.0,0.00018,2]
[358031535,1744659033265,-150.0,0.00018,2]
[358031536,1744659033275,-150.0,0.00018,2]
[358031537,1744659033286,-150.0,0.00018,2]
[358031538,1744659033296,-150.0,0.00018,2]
[358031539,1744659033306,-566.90745885,0.00018,2]
[358031540,1744659033315,-658.69828267,0.00018,2]
[358031541,1744659033325,-6164.71551656,0.00018,2]
[358031542,1744659033335,-756.4137361,0.00018,2]
[358031543,1744659033345,-200.0,0.00018,2]
[358031544,1744659033355,-329740.77852676,0.00018,2]
[358031545,1744659033369,-1028.33216437,0.00018,2]
[358031546,1744659033403,-842.16033665,0.00018,2]
[358031549,1744659037726,-5706.09575226,0.00017889,2]
[358031550,1744659037736,-152.0,0.00017896,2]
[358031551,1744659037746,-500.0,0.00017986,2]
[358031552,1744659037755,-500.0,0.00017986,2]
[358031553,1744659037765,-500.0,0.00017986,2]
[358031554,1744659037778,-500.0,0.00017986,2]
[358031555,1744659037791,-500.0,0.00017986,2]
[358031556,1744659037800,-500.0,0.00017986,2]
[358031557,1744659037810,-500.0,0.00017998,2]
[358031558,1744659037820,-500.0,0.00017998,2]
[358031559,1744659037829,-500.0,0.00017999,2]
[358031560,1744659037839,-500.0,0.00017999,2]
[358031561,1744659037849,-300.90561804,0.00017999,2]
[358031562,1744659037860,-500.0,0.00017999,2]
[358031563,1744659037870,-500.0,0.00017999,2]
[358031564,1744659037879,-500.0,0.00017999,2]
[358031565,1744659037889,-500.0,0.00017999,2]
[358031566,1744659037898,-500.0,0.00017999,2]
[358031567,1744659037908,-630.17841881,0.00017999,2]
[358031568,1744659037917,-500.0,0.00017999,2]
[358031569,1744659037927,-500.0,0.00017999,2]
[358031570,1744659037936,-167.56669739,0.00018,2]
[358031572,1744659037946,-360696.75754879,0.00018,2]
[358031574,1744659037962,-1150027.30881471,0.00018,2]
[358031576,1744659037974,-335786.44730617,0.00018,2]
[358031626,1744659039860,-4737.600618,0.00017986,2]
[358031627,1744659039869,-1455415.34157102,0.00018,2]
[358031640,1744659040291,-1506.26549305,0.00017891,2]
[358031694,1744659045653,-2965.24495735,0.00017891,2]
[358031722,1744659145853,151.0,0.00017144,2]
[358031723,1744659174033,300.0,0.00017173,2]
[358031724,1744659178895,150.0,0.00017119,2]
[358031725,1744659192472,1089.95,0.00017057,2]
[358031726,1744659208137,2416.98,0.00017057,2]
[358031727,1744659243338,234.76589628,0.00018,19]
[358031728,1744659246696,163.98,0.00017119,2]
[358031729,1744659282939,250.0,0.00017173,2]
[358031730,1744659336065,457.38,0.00017173,2]
[358031731,1744659347906,5559.0,0.000153,5]
[358031732,1744659348129,4441.0,0.000152,3]
[358031733,1744659510055,23900.0,0.00017017,2]
[358031734,1744659551689,2984.98,0.00017004,2]
[358031735,1744659574058,408.24,0.00016995,2]
[358031736,1744659633687,1000.0,0.00017173,2]
[358031737,1744659706753,354.35,0.000265,120]
[358031738,1744659817687,150.2347389,0.000265,120]
[358031739,1744659981648,194.24,0.00016952,2]
[358031740,1744660052150,-222.9,0.00017514,2]
[358031741,1744660052173,-43.60142567,0.00017581,2]
[358031742,1744660061818,970.35,0.0001501,2]
[358031743,1744660062032,970.35,0.00017274,2]
[358031744,1744660086759,150.0,0.0001694,2]
[358031747,1744660151162,-188.32134247,0.00017581,2]
[358031748,1744660151184,-45.09505753,0.00017689,2]
[358031753,1744660231751,-257.55743568,0.00017626,2]
[358031754,1744660231761,-1055.0387858,0.00017632,2]
[358031755,1744660231770,-832.42378052,0.00017656,2]
[358031756,1744660231781,-222.61500527,0.00017656,2]
[358031757,1744660231791,-121.31494247,0.00017689,2]
[358031758,1744660231800,-231.92276812,0.0001769,2]
[358031759,1744660231810,-322.60825618,0.00017698,2]
[358031760,1744660231822,-5393.79174382,0.00017698,2]
[358031761,1744660231831,-1000.0,0.000177,2]
[358031762,1744660231841,-300.0,0.00017797,2]
[358031763,1744660231851,-231.92276812,0.00017798,2]
[358031764,1744660231860,-1000.0,0.000178,2]
[358031765,1744660231870,-237.87596607,0.0001783,2]
[358031766,1744660231882,-519.20423304,0.0001783,2]
[358031767,1744660231893,-536.19511245,0.0001783,2]
[358031768,1744660231909,-405.23430088,0.0001783,2]
[358031769,1744660231920,-540.3519349,0.0001783,2]
[358031770,1744660231931,-404.4750197,0.0001783,2]
[358031771,1744660231942,-632.94,0.0001783,2]
[358031772,1744660231954,-309.69450853,0.0001783,2]
[358031773,1744660231966,-723.08598451,0.0001783,2]
[358031774,1744660231977,-539.75,0.0001783,2]
[358031775,1744660232003,-883.75040083,0.0001783,2]
[358031776,1744660232014,-291.26119028,0.0001783,2]
[358031777,1744660232176,-2120.56695028,0.0001783,2]
[358031778,1744660232188,-1425.70968958,0.0001783,2]
[358031779,1744660232200,-1638.29846363,0.0001783,2]
[358031780,1744660232211,-552.78485727,0.0001783,2]
[358031781,1744660232226,-6748.71156906,0.0001783,2]
[358031782,1744660232236,-4249.17,0.0001783,2]
[358031783,1744660232250,-387.31,0.0001783,2]
[358031784,1744660232260,-150.99,0.0001783,2]
[358031785,1744660232270,-4537.81799252,0.0001783,2]
[358031786,1744660232281,-103.90200748,0.0001783,2]
[358031787,1744660232291,-250.99274252,0.0001783,2]
[358031827,1744660232862,585.9,0.00016941,2]
[358031849,1744660237772,-21.12725748,0.0001783,2]
[358031850,1744660237781,-166.78,0.00017859,2]
[358031851,1744660237791,-5089.2714047,0.00017884,2]
[358031852,1744660237800,-543.0,0.00017884,2]
[358031853,1744660237809,-1794.82133783,0.00017885,2]
[358031854,1744660237827,-1988.41012558,0.00017885,2]
[358031855,1744660237984,-2134.07853659,0.00017885,2]
[358031856,1744660237994,-4541.12,0.00017885,2]
[358031857,1744660238003,-999.99,0.00017885,2]
[358031858,1744660238012,-24332.64,0.00017885,2]
[358031859,1744660238022,-772.81,0.00017885,2]
[358031860,1744660238032,-170.94997495,0.00017886,2]
[358031861,1744660238041,-1552.05080354,0.00017886,2]
[358031862,1744660238055,-605.21999996,0.00017886,2]
[358031863,1744660238067,-4971.6291965,0.00017886,2]
[358031864,1744660238078,-440.17982076,0.00017886,2]
[358031865,1744660238102,-1747.53017924,0.00017886,2]
[358031866,1744660238111,-14528.0482,0.00017886,2]
[358031867,1744660238120,-316.9393,0.00017899,2]
[358031868,1744660238131,-843.69826835,0.00017899,2]
[358031869,1744660238141,-205.02555427,0.000179,2]
[358031870,1744660238151,-1392.0,0.000179,2]
[358031871,1744660238163,-1000.0,0.00017965,2]
[358031872,1744660238172,-1328.0,0.00017967,2]
[358031873,1744660238181,-1287.0,0.00017967,2]
[358031874,1744660238191,-2047.0,0.00017967,2]
[358031875,1744660238200,-791.0,0.00017967,2]
[358031877,1744660238210,-545.0,0.00017967,2]
[358031879,1744660238219,-1279.0,0.00017967,2]
[358031881,1744660238228,-1017.946,0.00017967,2]
[358031883,1744660238239,-1438.0,0.00017967,2]
[358031885,1744660238248,-575.0,0.00017967,2]
[358031887,1744660238258,-4148.0,0.00017967,2]
[358031889,1744660238267,-152.0,0.00017967,2]
[358031891,1744660238276,-865.0,0.00017967,2]
[358031893,1744660238285,-3964.0,0.00017967,2]
[358031895,1744660238295,-250.0,0.00017967,2]
[358031897,1744660238305,-1123.0,0.00017967,2]
[358031898,1744660238314,-500.0,0.00017973,2]
[358031900,1744660238324,-207.84012458,0.00017973,2]
[358031902,1744660238333,-266.12414709,0.00017973,2]
[358031904,1744660238344,-157.25437071,0.00017973,2]
[358031906,1744660238353,-500.96791365,0.00017973,2]
[358031908,1744660238362,-507.38853225,0.00017973,2]
[358031910,1744660238372,-500.0,0.00017973,2]
[358031912,1744660238382,-152.98291366,0.00017973,2]
[358031914,1744660238391,-310.72202196,0.00017973,2]
[358031916,1744660238400,-500.0,0.00017973,2]
[358031918,1744660238410,-500.0,0.00017973,2]
[358031920,1744660238419,-1965.522,0.00017974,2]
[358031922,1744660238428,-154.46,0.00017974,2]
[358031923,1744660238438,-2060.62,0.00017974,2]
[358031925,1744660238447,-403.63394611,0.00017984,2]
[358031927,1744660238456,-500.0,0.00017984,2]
[358031929,1744660238466,-500.0,0.00017984,2]
[358031931,1744660238475,-530.41871699,0.00017984,2]
[358031933,1744660238484,-500.0,0.00017984,2]
[358031935,1744660238494,-500.0,0.00017984,2]
[358031937,1744660238505,-500.0,0.00017984,2]
[358031939,1744660238514,-500.0,0.00017984,2]
[358031941,1744660238524,-500.0,0.00017984,2]
[358031943,1744660238535,-500.0,0.00017984,2]
[358031945,1744660238544,-500.0,0.00017984,2]
[358031947,1744660238553,-561.24367981,0.00017984,2]
[358031949,1744660238563,-500.0,0.00017984,2]
[358031951,1744660238572,-500.0,0.00017984,2]
[358031953,1744660238582,-500.0,0.00017984,2]
[358031955,1744660238594,-500.0,0.00017984,2]
[358031956,1744660238603,-500.0,0.00017984,2]
[358031958,1744660238613,-500.0,0.00017984,2]
[358031960,1744660238622,-627.43989983,0.00017984,2]
[358031962,1744660238631,-500.0,0.00017984,2]
[358031964,1744660238641,-287.11984043,0.00017984,2]
[358031966,1744660238650,-500.0,0.00017984,2]
[358031968,1744660238660,-500.0,0.00017984,2]
[358031970,1744660238670,-554.83861831,0.00017984,2]
[358031972,1744660238680,-500.0,0.00017984,2]
[358031974,1744660238689,-500.0,0.00017984,2]
[358031976,1744660238699,-500.0,0.00017984,2]
[358031978,1744660238708,-500.0,0.00017984,2]
[358031980,1744660238717,-500.0,0.00017984,2]
[358031982,1744660238728,-500.0,0.00017984,2]
[358031984,1744660238737,-500.0,0.00017984,2]
[358031986,1744660238746,-500.0,0.00017984,2]
[358031988,1744660238755,-500.0,0.00017984,2]
[358031990,1744660238765,-520.39888307,0.00017984,2]
[358031992,1744660238774,-643.80836105,0.00017984,2]
[358031994,1744660238784,-500.0,0.00017984,2]
[358031996,1744660238794,-500.0,0.00017984,2]
[358031998,1744660238803,-500.0,0.00017984,2]
[358032000,1744660238812,-540.38485389,0.00017984,2]
[358032002,1744660238821,-500.0,0.00017984,2]
[358032004,1744660238830,-500.0,0.00017984,2]
[358032006,1744660238840,-500.0,0.00017984,2]
[358032008,1744660238849,-500.0,0.00017984,2]
[358032010,1744660238858,-500.0,0.00017984,2]
[358032012,1744660238869,-500.0,0.00017984,2]
[358032014,1744660238878,-500.0,0.00017984,2]
[358032016,1744660238888,-500.0,0.00017984,2]
[358032017,1744660238897,-500.0,0.00017984,2]
[358032019,1744660238907,-500.0,0.00017984,2]
[358032021,1744660238916,-500.0,0.00017984,2]
[358032023,1744660238925,-500.0,0.00017984,2]
[358032025,1744660238934,-500.0,0.00017984,2]
[358032027,1744660238943,-500.0,0.00017984,2]
[358032029,1744660238953,-500.0,0.00017984,2]
[358032031,1744660238962,-500.0,0.00017984,2]
[358032033,1744660238974,-500.0,0.00017984,2]
[358032035,1744660238983,-500.0,0.00017984,2]
[358032037,1744660238993,-500.0,0.00017984,2]
[358032039,1744660239002,-500.0,0.00017984,2]
[358032041,1744660239012,-500.0,0.00017984,2]
[358032043,1744660239022,-500.0,0.00017984,2]
[358032045,1744660239031,-500.0,0.00017984,2]
[358032047,1744660239040,-822.1,0.00017984,2]
[358032049,1744660239049,-500.0,0.00017984,2]
[358032051,1744660239059,-500.0,0.00017984,2]
[358032053,1744660239068,-500.0,0.00017984,2]
[358032055,1744660239078,-500.0,0.00017984,2]
[358032057,1744660239088,-521.21989416,0.00017984,2]
[358032059,1744660239097,-380.85090736,0.00017984,2]
[358032061,1744660239106,-500.0,0.00017984,2]
[358032063,1744660239116,-500.0,0.00017984,2]
[358032065,1744660239125,-468.06162354,0.00017984,2]
[358032067,1744660239135,-500.0,0.00017984,2]
[358032069,1744660239144,-500.0,0.00017984,2]
[358032070,1744660239154,-514.62229691,0.00017984,2]
[358032071,1744660239166,-500.0,0.00017984,2]
[358032072,1744660239175,-504.21575353,0.00017984,2]
[358032073,1744660239184,-500.0,0.00017984,2]
[358032074,1744660239193,-500.0,0.00017984,2]
[358032075,1744660239203,-500.0,0.00017984,2]
[358032076,1744660239213,-500.0,0.00017984,2]
[358032077,1744660239222,-500.0,0.00017984,2]
[358032078,1744660239231,-500.0,0.00017984,2]
[358032079,1744660239242,-500.0,0.00017984,2]
[358032080,1744660239251,-500.0,0.00017984,2]
[358032081,1744660239260,-500.0,0.00017984,2]
[358032082,1744660239271,-500.0,0.00017984,2]
[358032083,1744660239281,-500.0,0.00017984,2]
[358032084,1744660239291,-500.0,0.00017984,2]
[358032085,1744660239301,-500.0,0.00017984,2]
[358032086,1744660239311,-500.0,0.00017984,2]
[358032087,1744660239321,-500.0,0.00017984,2]
[358032088,1744660239331,-500.0,0.00017984,2]
[358032089,1744660239342,-500.0,0.00017984,2]
[358032090,1744660239351,-500.0,0.00017984,2]
[358032091,1744660239361,-500.0,0.00017984,2]
[358032092,1744660239370,-500.0,0.00017984,2]
[358032093,1744660239379,-500.0,0.00017984,2]
[358032094,1744660239389,-500.0,0.00017984,2]
[358032095,1744660239400,-500.0,0.00017984,2]
[358032096,1744660239411,-500.0,0.00017984,2]
[358032097,1744660239421,-500.0,0.00017984,2]
[358032098,1744660239430,-500.0,0.00017984,2]
[358032099,1744660239450,-500.0,0.00017984,2]
[358032100,1744660239469,-203.01815981,0.00017984,2]
[358032101,1744660239490,-180.7166134,0.00017984,2]
[358032102,1744660239511,-186.02695843,0.00017984,2]
[358032103,1744660239531,-500.0,0.00017984,2]
[358032104,1744660239552,-538.92046213,0.00017984,2]
[358032105,1744660239572,-500.89065652,0.00017984,2]
[358032106,1744660239597,-500.0,0.00017984,2]
[358032107,1744660239618,-500.0,0.00017984,2]
[358032108,1744660239639,-500.0,0.00017984,2]
[358032109,1744660239661,-543.92744221,0.00017984,2]
[358032110,1744660239682,-500.0,0.00017984,2]
[358032111,1744660239702,-500.0,0.00017984,2]
[358032112,1744660239723,-500.0,0.00017984,2]
[358032113,1744660239744,-500.0,0.00017984,2]
[358032114,1744660239766,-500.0,0.00017984,2]
[358032115,1744660239788,-500.0,0.00017984,2]
[358032116,1744660239810,-500.0,0.00017984,2]
[358032117,1744660239831,-500.0,0.00017984,2]
[358032118,1744660239854,-500.0,0.00017984,2]
[358032119,1744660239874,-500.0,0.00017984,2]
[358032120,1744660239895,-500.0,0.00017984,2]
[358032121,1744660239916,-500.0,0.00017984,2]
[358032122,1744660239937,-500.0,0.00017984,2]
[358032123,1744660239957,-500.0,0.00017984,2]
[358032124,1744660239979,-500.0,0.00017984,2]
[358032125,1744660240001,-500.0,0.00017984,2]
[358032126,1744660240022,-500.0,0.00017984,2]
[358032127,1744660240039,-500.0,0.00017984,2]
[358032128,1744660240048,-517.77433538,0.00017984,2]
[358032129,1744660240057,-500.0,0.00017984,2]
[358032130,1744660240066,-510.66666768,0.00017984,2]
[358032131,1744660240076,-500.0,0.00017984,2]
[358032132,1744660240086,-545.63495376,0.00017984,2]
[358032133,1744660240096,-500.0,0.00017984,2]
[358032134,1744660240105,-500.0,0.00017984,2]
[358032135,1744660240115,-500.0,0.00017984,2]
[358032136,1744660240124,-500.0,0.00017984,2]
[358032137,1744660240133,-500.0,0.00017984,2]
[358032138,1744660240142,-500.0,0.00017984,2]
[358032139,1744660240151,-500.0,0.00017984,2]
[358032140,1744660240164,-500.0,0.00017984,2]
[358032141,1744660240173,-500.0,0.00017984,2]
[358032142,1744660240183,-537.84101929,0.00017984,2]
[358032143,1744660240192,-500.0,0.00017984,2]
[358032144,1744660240202,-500.0,0.00017984,2]
[358032145,1744660240212,-500.0,0.00017984,2]
[358032146,1744660240221,-500.0,0.00017984,2]
[358032147,1744660240233,-500.0,0.00017984,2]
[358032148,1744660240243,-500.0,0.00017984,2]
[358032149,1744660240253,-500.0,0.00017984,2]
[358032150,1744660240263,-500.0,0.00017984,2]
[358032151,1744660240272,-500.0,0.00017984,2]
[358032152,1744660240281,-500.0,0.00017984,2]
[358032153,1744660240291,-500.0,0.00017984,2]
[358032154,1744660240301,-239.55596524,0.00017984,2]
[358032155,1744660240311,-500.0,0.00017984,2]
[358032156,1744660240321,-500.0,0.00017984,2]
[358032157,1744660240331,-768.94,0.00017984,2]
[358032158,1744660240341,-500.0,0.00017984,2]
[358032159,1744660240350,-500.0,0.00017984,2]
[358032160,1744660240360,-500.0,0.00017984,2]
[358032162,1744660240371,-500.0,0.00017984,2]
[358032163,1744660240384,-500.0,0.00017984,2]
[358032164,1744660240394,-500.0,0.00017984,2]
[358032165,1744660240403,-575.83,0.00017984,2]
[358032166,1744660240413,-500.0,0.00017984,2]
[358032167,1744660240422,-500.0,0.00017984,2]
[358032168,1744660240432,-500.0,0.00017984,2]
[358032169,1744660240441,-500.0,0.00017984,2]
[358032170,1744660240450,-500.0,0.00017984,2]
[358032171,1744660240459,-500.0,0.00017984,2]
[358032172,1744660240470,-195.920566,0.00017984,2]
[358032173,1744660240483,-500.0,0.00017984,2]
[358032174,1744660240496,-500.0,0.00017984,2]
[358032175,1744660240506,-22215.761279,0.00017984,2]
[358032176,1744660240516,-500.0,0.00017984,2]
[358032177,1744660240525,-500.0,0.00017984,2]
[358032178,1744660240534,-500.0,0.00017984,2]
[358032179,1744660240544,-1000.0,0.00017984,2]
[358032180,1744660240553,-500.0,0.00017984,2]
[358032181,1744660240563,-500.0,0.00017984,2]
[358032182,1744660240572,-500.0,0.00017984,2]
[358032183,1744660240581,-500.0,0.00017984,2]
[358032184,1744660240592,-503.94040593,0.00017984,2]
[358032185,1744660240602,-416.17172615,0.00017984,2]
[358032186,1744660240611,-500.0,0.00017984,2]
[358032187,1744660240621,-500.0,0.00017984,2]
[358032188,1744660240630,-500.0,0.00017984,2]
[358032189,1744660240640,-500.0,0.00017984,2]
[358032190,1744660240649,-500.0,0.00017984,2]
[358032191,1744660240658,-500.0,0.00017984,2]
[358032192,1744660240668,-500.0,0.00017984,2]
[358032193,1744660240677,-506.48989532,0.00017984,2]
[358032194,1744660240687,-500.0,0.00017984,2]
[358032195,1744660240697,-2278.394429,0.00017984,2]
[358032196,1744660240706,-500.0,0.00017984,2]
[358032197,1744660240716,-500.0,0.00017984,2]
[358032198,1744660240725,-500.0,0.00017984,2]
[358032199,1744660240734,-500.0,0.00017984,2]
[358032200,1744660240743,-418.27290467,0.00017984,2]
[358032201,1744660240753,-500.0,0.00017984,2]
[358032202,1744660240762,-180.10824625,0.00017984,2]
[358032203,1744660240771,-500.0,0.00017984,2]
[358032204,1744660240781,-500.0,0.00017984,2]
[358032205,1744660240790,-500.0,0.00017984,2]
[358032206,1744660240799,-500.0,0.00017984,2]
[358032207,1744660240809,-500.0,0.00017984,2]
[358032208,1744660240818,-963.356137,0.00017984,2]
[358032209,1744660240828,-500.0,0.00017984,2]
[358032210,1744660240839,-500.0,0.00017984,2]
[358032211,1744660240848,-500.0,0.00017984,2]
[358032212,1744660240858,-615.88,0.00017984,2]
[358032213,1744660240867,-500.0,0.00017984,2]
[358032214,1744660240876,-500.0,0.00017984,2]
[358032215,1744660240886,-500.0,0.00017984,2]
[358032216,1744660240896,-500.0,0.00017984,2]
[358032217,1744660240906,-500.0,0.00017984,2]
[358032218,1744660240915,-634.63171996,0.00017984,2]
[358032219,1744660240925,-500.0,0.00017984,2]
[358032220,1744660240935,-174.008213,0.00017984,2]
[358032221,1744660240944,-500.0,0.00017984,2]
[358032222,1744660240954,-500.0,0.00017984,2]
[358032223,1744660240963,-500.0,0.00017984,2]
[358032224,1744660240973,-500.0,0.00017984,2]
[358032225,1744660240982,-500.0,0.00017984,2]
[358032226,1744660240992,-500.0,0.00017984,2]
[358032227,1744660241001,-500.0,0.00017984,2]
[358032228,1744660241011,-500.0,0.00017984,2]
[358032229,1744660241021,-629.13,0.00017984,2]
[358032230,1744660241030,-500.0,0.00017984,2]
[358032231,1744660241050,-500.0,0.00017984,2]
[358032232,1744660241059,-500.0,0.00017984,2]
[358032233,1744660241069,-500.0,0.00017984,2]
[358032234,1744660241078,-500.0,0.00017984,2]
[358032235,1744660241087,-500.0,0.00017984,2]
[358032236,1744660241097,-500.0,0.00017984,2]
[358032237,1744660241106,-500.0,0.00017984,2]
[358032238,1744660241116,-500.0,0.00017984,2]
[358032239,1744660241125,-507.8288872,0.00017985,2]
[358032240,1744660241135,-522.63438407,0.00017985,2]
[358032241,1744660241144,-500.0,0.00017985,2]
[358032242,1744660241155,-500.0,0.00017985,2]
[358032243,1744660241168,-542.39619647,0.00017985,2]
[358032244,1744660241177,-500.0,0.00017985,2]
[358032245,1744660241188,-500.0,0.00017985,2]
[358032246,1744660241197,-500.0,0.00017985,2]
[358032247,1744660241208,-528.30326795,0.00017985,2]
[358032248,1744660241218,-500.0,0.00017985,2]
[358032249,1744660241227,-500.0,0.00017985,2]
[358032250,1744660241238,-523.49119443,0.00017985,2]
[358032251,1744660241247,-500.0,0.00017985,2]